bitfinex-derivatives/quotes_SOLF0:USTF0_20250803
["timestamp","ask_amount","ask_price","bid_price","bid_amount"]
[1754257501817,6.1834,161.72,161.69,3.98416337]
[1754257501818,3.5,161.7,161.69,3.98416337]
[1754257502118,3.5,161.69,161.67,10.16936337]
[1754257504412,3.5,161.69,161.67,13.51936337]
[1754257504611,3.5,161.69,161.67,9.5352]
[1754257505120,6.1838,161.71,161.67,6.1852]
[1754257505321,4.56947738,161.7,161.67,9.5352]
[1754257505510,3.5,161.7,161.67,9.5352]
[1754257506620,6.1838,161.71,161.68,3.35]
[1754257506820,3.5,161.69,161.68,3.35]
[1754257508822,3.5,161.69,161.68,9.5349]
[1754257511721,3.5,161.7,161.65,351.66630781]
[1754257511924,6.24630781,161.76,161.65,351.66630781]
[1754257511925,3.5,161.75,161.68,3.35]
[1754257512128,3.5,161.73,161.68,3.35]
[1754257512422,3.5,161.72,161.68,3.35]
[1754257512626,3.5,161.72,161.69,6.1842]
[1754257512826,3.5,161.73,161.7,3.35]
[1754257513429,3.5,161.72,161.7,3.35]
[1754257513726,3.5,161.71,161.7,3.35]
[1754257517827,6.183,161.73,161.69,6.1842]
[1754257518131,3.31,161.71,161.69,9.6742]
[1754257518328,3.31,161.7,161.69,9.6742]
[1754257518530,9.4934,161.72,161.69,9.6742]
[1754257518728,3.31,161.71,161.69,9.6742]
[1754257519837,3.31,161.71,161.69,3.49]
[1754257523939,3.31,161.7,161.69,3.49]
[1754257525239,6.1834,161.72,161.68,10.18241531]
[1754257525432,3.31,161.71,161.68,13.67241531]
[1754257525840,3.31,161.71,161.68,7.48751531]
[1754257527940,3.31,161.71,161.68,3.99751531]
[1754257528136,3.31,161.69,161.68,3.99751531]
[1754257528741,3.31,161.69,161.68,7.48751531]
[1754257529642,3.31,161.69,161.68,3.49]
[1754257540643,3.31,161.69,161.68,6.1849]
[1754257540843,4.56872661,161.69,161.68,6.1849]
[1754257541050,7.87872661,161.69,161.68,6.1849]
[1754257541741,7.87872661,161.69,161.68,9.6749]
[1754257542241,3.31,161.68,161.61,3.99751531]
[1754257542445,3.31,161.66,161.62,3.49]
[1754257542647,7.87872661,161.65,161.63,3.99751531]
[1754257542848,4.56872661,161.64,161.63,10.18421531]
[1754257544352,3.41,161.66,161.65,3.3]
[1754257544547,7.98855232,161.66,161.64,6.1863]
[1754257544742,4.57855232,161.65,161.64,6.1863]
[1754257545252,4.57855232,161.65,161.63,10.18421531]
[1754257545453,4.57757764,161.64,161.63,3.99751531]
[1754257546058,4.57757764,161.64,161.63,7.29751531]
[1754257547349,4.57757764,161.64,161.63,13.48431531]
[1754257547549,4.57757764,161.64,161.63,10.18431531]
[1754257548451,4.57757764,161.64,161.63,13.48431531]
[1754257549760,6.1852,161.68,161.65,6.186]
[1754257549962,7.98724978,161.67,161.66,3.3]
[1754257551964,7.98724978,161.67,161.65,10.18351531]
[1754257552161,7.98724978,161.66,161.65,6.186]
[1754257552464,7.98724978,161.66,161.62,7.29751531]
[1754257552661,4.57724978,161.65,161.62,7.29751531]
[1754257552962,4.57724978,161.64,161.63,3.3]
[1754257553469,4.57724978,161.64,161.63,9.4865]
[1754257559272,4.57724978,161.64,161.63,6.1865]
[1754257560976,4.57724978,161.64,161.63,9.4865]
[1754257562087,3.41,161.66,161.63,9.4865]
[1754257562385,4.57160134,161.65,161.63,9.4865]
[1754257562684,4.57160134,161.64,161.63,9.4865]
[1754257564088,4.57160134,161.64,161.63,6.1865]
[1754257564586,7.98160134,161.64,161.63,3.3]
[1754257565488,4.57160134,161.64,161.62,122.66461531]
[1754257565787,3.41,161.65,161.62,125.96461531]
[1754257565988,7.98117288,161.64,161.63,3.3]
[1754257566988,4.57117288,161.64,161.63,3.3]
[1754257568288,4.57117288,161.64,161.62,122.66461531]
[1754257568489,3.41,161.65,161.63,3.3]
[1754257568688,3.41,161.65,161.64,112.5]
[1754257568888,7.98119894,161.65,161.64,112.5]
[1754257574896,14.16719894,161.65,161.64,112.5]
[1754257577802,4.57119894,161.65,161.63,3.52]
[1754257578008,4.57119894,161.64,161.63,3.52]
[1754257579105,4.57119894,161.64,161.63,9.7068]
[1754257579602,9.5954,161.67,161.64,3.52]
[1754257579803,9.5954,161.67,161.66,3.52]
[1754257582102,3.41,161.67,161.66,3.52]
[1754257585906,6.1849,161.68,161.66,3.52]
[1754257586105,9.5949,161.68,161.66,3.52]
[1754257586507,3.41,161.67,161.66,3.52]
[1754257587610,7.98340683,161.67,161.66,3.52]
[1754257591411,7.9823096,161.67,161.66,3.52]
[1754257592210,4.5723096,161.67,161.66,3.52]
[1754257596918,7.9823096,161.67,161.65,112.5]
[1754257597218,4.5723096,161.66,161.65,116.02]
[1754257600020,3.41,161.67,161.65,116.02]
[1754257600220,4.56847236,161.66,161.65,116.02]
[1754257604122,7.78847236,161.66,161.65,116.02]
[1754257606225,4.56847236,161.66,161.65,122.2061]
[1754257607225,4.56847236,161.66,161.65,126.20361531]
[1754257615636,7.78847236,161.66,161.65,126.20361531]
[1754257615938,4.56847236,161.66,161.65,126.20361531]
[1754257621840,7.78847236,161.66,161.65,126.20361531]
[1754257622340,4.56847236,161.66,161.65,126.20361531]
[1754257622845,3.22,161.67,161.66,6.1856]
[1754257623046,7.79169107,161.67,161.66,6.1856]
[1754257626642,7.79169107,161.67,161.66,9.6456]
[1754257627647,7.79169107,161.67,161.65,116.49751531]
[1754257627837,4.57169107,161.66,161.65,116.49751531]
[1754257628034,4.57169107,161.66,161.65,119.95751531]
[1754257629748,7.79169107,161.66,161.65,119.95751531]
[1754257632649,7.79169107,161.66,161.65,112.5]
[1754257634350,13.97739107,161.66,161.65,112.5]
[1754257636455,7.79169107,161.66,161.65,112.5]
[1754257637945,7.79169107,161.66,161.65,116.49751531]
[1754257639454,4.57169107,161.66,161.65,116.49751531]
[1754257639656,4.57169107,161.66,161.65,119.93751531]
[1754257642956,7.96169107,161.66,161.65,119.93751531]
[1754257643954,7.96169107,161.66,161.65,116.49751531]
[1754257644556,7.96169107,161.66,161.65,119.93751531]
[1754257645057,7.96169107,161.66,161.65,119.85751531]
[1754257646056,7.96169107,161.66,161.65,116.41751531]
[1754257647958,7.96169107,161.66,161.65,119.85751531]
[1754257648859,7.96169107,161.66,161.65,116.41751531]
[1754257649058,7.96169107,161.66,161.65,112.42]
[1754257649258,7.96169107,161.66,161.65,119.85751531]
[1754257649560,7.96169107,161.66,161.65,116.41751531]
[1754257650363,7.96169107,161.66,161.65,119.85751531]
[1754257652262,7.96353896,161.66,161.65,119.85751531]
[1754257658165,7.96353896,161.66,161.65,115.86]
[1754257658464,14.14923896,161.66,161.65,115.86]
[1754257658665,14.14923896,161.66,161.65,112.42]
[1754257658860,14.14923896,161.66,161.65,115.86]
[1754257659465,14.14923896,161.66,161.65,112.42]
[1754257659861,14.14923896,161.66,161.64,3.44]
[1754257660063,7.96353896,161.65,161.64,115.84]
[1754257662569,7.96353896,161.65,161.64,119.83751531]
[1754257666773,7.96416112,161.65,161.64,119.83751531]
[1754257667673,7.96427372,161.65,161.64,119.83751531]
[1754257668073,4.57427372,161.65,161.64,119.83751531]
[1754257672775,9.5957,161.66,161.64,116.39751531]
[1754257672976,9.5957,161.66,161.65,3.2]
[1754257673176,14.17145935,161.66,161.65,3.2]
[1754257673676,10.76145935,161.66,161.65,3.2]
[1754257675776,10.76306277,161.66,161.65,3.2]
[1754257676575,14.17306277,161.66,161.65,3.2]
[1754257681080,14.1278123,161.66,161.65,3.2]
[1754257682782,10.7178123,161.66,161.65,3.2]
[1754257683683,14.1278123,161.66,161.65,3.2]
[1754257684086,14.1278123,161.66,161.64,116.39751531]
[1754257684283,4.5321123,161.65,161.64,116.39751531]
[1754257684590,4.5321123,161.65,161.64,119.59751531]
[1754257684889,7.9421123,161.65,161.64,119.59751531]
[1754257685482,4.5321123,161.65,161.64,119.59751531]
[1754257686384,7.9421123,161.65,161.64,119.59751531]
[1754257686984,4.5321123,161.65,161.64,119.59751531]
[1754257689490,6.1857,161.66,161.64,119.59751531]
[1754257689688,6.1857,161.66,161.65,3.2]
[1754257690287,9.5957,161.66,161.65,3.2]
[1754257690493,14.25422518,161.66,161.65,3.2]
[1754257697886,14.25422518,161.66,161.65,7.19751531]
[1754257698082,4.65852518,161.66,161.65,7.19751531]
[1754257698389,3.27,161.72,161.65,3.99751531]
[1754257698689,4.65790033,161.71,161.69,3.3]
[1754257698889,4.65790033,161.7,161.69,115.68]
[1754257699293,7.92790033,161.7,161.69,115.68]
[1754257702596,4.65790033,161.7,161.69,115.68]
[1754257702794,7.92790033,161.7,161.69,115.68]
[1754257703688,4.65790033,161.7,161.69,115.68]
[1754257704188,4.63647658,161.7,161.69,121.8445]
[1754257705195,6.1822,161.75,161.7,9.4839]
[1754257705395,7.90342591,161.74,161.72,7.29751531]
[1754257705696,3.27,161.74,161.73,112.36]
[1754257705895,7.90342591,161.74,161.73,112.36]
[1754257706792,4.63342591,161.74,161.73,112.36]
[1754257706999,7.90342591,161.74,161.73,115.66]
[1754257711900,14.0795281,161.74,161.73,115.66]
[1754257713902,7.8969281,161.74,161.73,115.66]
[1754257714899,4.6269281,161.74,161.73,115.66]
[1754257715103,7.8969281,161.74,161.73,115.66]
[1754257717705,4.6269281,161.74,161.73,115.66]
[1754257718108,7.8969281,161.74,161.73,115.66]
[1754257718702,4.6269281,161.74,161.73,115.66]
[1754257719612,7.8969281,161.74,161.73,115.66]
[1754257720205,3.27,161.74,161.73,115.66]
[1754257721909,3.27,161.74,161.73,112.36]
[1754257722111,7.86881433,161.74,161.73,112.36]
[1754257722407,3.27,161.74,161.73,112.36]
[1754257723714,3.27,161.74,161.73,115.66]
[1754257723911,203.99804334,161.79,161.73,112.36]
[1754257724112,3.47,161.76,161.74,3.3]
[1754257724307,4.59824418,161.75,161.74,3.3]
[1754257724510,8.06824418,161.75,161.74,3.3]
[1754257726013,8.06824418,161.75,161.74,7.29751531]
[1754257726511,4.59824418,161.75,161.74,7.29751531]
[1754257726814,3.47,161.76,161.74,7.29751531]
[1754257727112,3.47,161.77,161.76,3.3]
[1754257727412,6.1812,161.78,161.76,3.3]
[1754257727807,6.1812,161.78,161.75,112.32]
[1754257728012,3.47,161.77,161.76,3.3]
[1754257748029,3.47,161.77,161.75,112.32]
[1754257748223,3.47,161.79,161.77,3.3]
[1754257748421,3.47,161.79,161.78,3.3]
[1754257749029,3.47,161.8,161.78,3.3]
[1754257749626,3.47,161.8,161.79,115.58]
[1754257753528,3.47,161.8,161.79,112.28]
[1754257753834,3.47,161.8,161.79,115.58]
[1754257758632,6.92484139,161.85,161.8,3.4]
[1754257758832,3.36,161.85,161.82,3.4]
[1754257760040,3.36,161.85,161.83,3.4]
[1754257763143,13.53481531,161.88,161.84,116.23751531]
[1754257763342,3.36,161.87,161.85,3.4]
[1754257763748,3.36,161.86,161.85,3.4]
[1754257767043,3.36,161.87,161.85,3.4]
[1754257769446,3.36,161.87,161.86,3.4]
[1754257777555,3.99751531,161.9,161.86,3.4]
[1754257777751,3.36,161.89,161.87,3.4]
[1754257779151,3.36,161.89,161.86,10.17531531]
[1754257779358,3.36,161.89,161.88,3.4]
[1754257781359,3.36,161.9,161.88,3.4]
[1754257782954,3.36,161.89,161.88,3.4]
[1754257785164,3.36,161.89,161.88,7.39751531]
[1754257790866,3.36,161.89,161.88,13.57461531]
[1754257791260,3.36,161.97,161.89,3.25]
[1754257791461,3.99751531,161.98,161.93,7.24751531]
[1754257791661,3.36,161.96,161.94,3.25]
[1754257792070,3.36,161.96,161.95,3.25]
[1754257792864,10.17071531,161.98,161.94,6.1746]
[1754257793065,3.36,161.97,161.94,6.1746]
[1754257793467,3.36,161.97,161.93,3.99751531]
[1754257793468,3.36,161.97,161.93,10.17261531]
[1754257793669,3.36,161.95,161.91,3.99751531]
[1754257793869,3.36,161.95,161.91,7.24751531]
[1754257794664,3.36,161.95,161.92,3.25]
[1754257794862,3.36,161.95,161.91,7.24751531]
[1754257795162,3.36,161.95,161.91,13.42341531]
[1754257797573,3.36,161.95,161.92,3.25]
[1754257798767,6.1745,161.95,161.92,3.25]
[1754257798974,3.36,161.94,161.92,3.25]
[1754257800576,10.39402939,162.03,161.91,10.17341531]
[1754257800577,3.36,161.93,161.91,3.99751531]
[1754257801676,9.5353,161.93,161.91,3.99751531]
[1754257801979,3.36,161.92,161.91,3.99751531]
[1754257804179,3.36,161.92,161.91,7.24751531]
[1754257804980,3.36,161.92,161.91,3.25]
[1754257807078,3.36,161.92,161.9,3.99751531]
[1754257807279,3.36,161.92,161.9,7.24751531]
[1754257807477,3.36,161.92,161.9,3.99751531]
[1754257807673,3.36,161.92,161.91,3.25]
[1754257814994,9.6253,161.93,161.9,3.99751531]
[1754257815194,9.6253,161.93,161.91,3.38]
[1754257816390,3.45,161.92,161.91,3.38]
[1754257823199,3.45,161.92,161.9,3.99751531]
[1754257823406,9.6256,161.92,161.88,112.72]
[1754257823703,157.13731225,161.97,161.89,7.37751531]
[1754257823704,3.45,161.9,161.89,7.37751531]
[1754257825300,3.45,161.9,161.88,112.72]
[1754257825604,3.45,161.93,161.88,112.72]
[1754257825805,3.45,161.93,161.88,116.1]
[1754257826005,3.45,161.93,161.89,3.38]
[1754257827209,6.1762,161.9,161.89,3.38]
[1754257827512,9.6262,161.9,161.89,3.38]
[1754257835315,6.1762,161.9,161.89,3.38]
[1754257836407,9.6262,161.9,161.89,3.38]
[1754257850727,6.1762,161.9,161.89,3.38]
[1754257851128,6.176,161.91,161.89,3.38]
[1754257851428,6.176,161.91,161.9,119.76751531]
[1754257851727,9.466,161.91,161.9,119.76751531]
[1754257858633,6.1766,161.89,161.88,3.99751531]
[1754257858834,9.4666,161.89,161.88,119.74751531]
[1754257860239,9.4666,161.89,161.88,112.34]
[1754257860634,6.1774,161.87,161.86,3.99751531]
[1754257860835,9.4674,161.87,161.86,119.80751531]
[1754257861841,9.4674,161.87,161.86,115.81]
[1754257865942,6.1774,161.87,161.86,115.81]
[1754257867444,9.4674,161.87,161.86,115.81]
[1754257868644,6.1774,161.87,161.86,115.81]
[1754257883158,9.3874,161.87,161.86,112.4]
[1754257884058,13.98312408,161.87,161.86,112.4]
[1754257884855,10.77312408,161.87,161.86,112.4]
[1754257885047,13.98312408,161.87,161.86,112.4]
[1754257890065,13.98312408,161.87,161.86,115.78]
[1754257892468,13.98312408,161.87,161.86,112.4]
[1754257895166,13.98312408,161.87,161.86,115.78]
[1754257896169,10.77312408,161.87,161.86,112.4]
[1754257896872,10.77312408,161.87,161.86,115.78]
[1754257899271,13.98312408,161.87,161.86,112.4]
[1754257899465,13.98312408,161.87,161.86,115.78]
[1754257899671,10.77312408,161.87,161.86,115.78]
[1754257900473,13.98312408,161.87,161.86,115.78]
[1754257901973,10.77312408,161.87,161.86,115.78]
[1754257902372,13.98312408,161.87,161.86,115.78]
[1754257904776,10.77312408,161.87,161.86,115.78]
[1754257905272,14.29312408,161.87,161.86,115.78]
[1754257906374,10.77312408,161.87,161.86,115.78]
[1754257907375,14.29312408,161.87,161.86,115.78]
[1754257913282,14.31154136,161.87,161.86,115.78]
[1754257916185,10.79154136,161.87,161.86,115.78]
[1754257916383,14.31154136,161.87,161.86,115.78]
[1754257929492,10.79154136,161.87,161.86,112.4]
[1754257929693,10.79154136,161.87,161.86,115.83]
[1754257930088,14.31154136,161.87,161.86,115.83]
[1754257944105,14.14154136,161.87,161.86,115.83]
[1754257944302,10.79154136,161.87,161.86,115.83]
[1754257944904,14.14154136,161.87,161.86,115.83]
[1754257945100,10.79154136,161.87,161.86,115.83]
[1754257945803,14.14154136,161.87,161.86,115.83]
[1754257950309,10.79154136,161.87,161.86,115.83]
[1754257951904,4.61414136,161.87,161.86,115.83]
[1754257956307,7.96414136,161.87,161.86,115.83]
[1754257957805,4.61414136,161.87,161.86,115.83]
[1754257959513,4.59616741,161.87,161.86,115.83]
[1754257959913,4.59616789,161.87,161.86,112.4]
[1754257960518,7.94616789,161.87,161.86,115.58]
[1754257961108,4.59616789,161.87,161.86,115.58]
[1754257962412,7.94616789,161.87,161.86,112.4]
[1754257963512,7.94616789,161.87,161.86,115.58]
[1754257967330,4.59616789,161.87,161.86,115.58]
[1754257973937,161.70589577,161.92,161.87,3.27]
[1754257973938,150.78353907,161.92,161.87,3.27]
[1754257974139,154.11353907,161.92,161.91,7.26751531]
[1754257974328,158.70480964,161.92,161.91,119.42751531]
[1754257975435,164.88040964,161.92,161.91,119.42751531]
[1754257977941,155.37480964,161.92,161.91,119.42751531]
[1754257978338,158.70480964,161.92,161.91,119.42751531]
[1754257981440,7.92127057,161.92,161.91,119.42751531]
[1754257981643,9.5048,161.94,161.92,3.27]
[1754257981843,7.91269998,161.93,161.92,3.27]
[1754257982143,7.91269998,161.93,161.92,115.41]
[1754257984036,3.33,161.94,161.92,115.41]
[1754257984343,3.33,161.94,161.93,3.27]
[1754257984544,7.90767468,161.94,161.93,7.26751531]
[1754257985337,3.33,161.94,161.93,7.26751531]
[1754257985542,3.33,161.96,161.93,3.99751531]
[1754257985846,7.90622492,161.95,161.94,112.12]
[1754257986145,7.90622492,161.95,161.94,115.39]
[1754257989452,3.33,161.95,161.94,115.39]
[1754257990454,9.5042,161.96,161.95,3.27]
[1754257990758,14.07494203,161.96,161.95,3.27]
[1754257991156,3.33,161.98,161.95,3.99751531]
[1754257991347,4.56950028,161.97,161.96,115.37]
[1754257991851,3.33,161.98,161.97,3.27]
[1754257992053,3.33,161.98,161.97,7.26751531]
[1754258001759,3.36,162.0,161.98,3.22]
[1754258002058,3.36,162.0,161.99,119.29751531]
[1754258003058,3.36,162.01,162.0,3.22]
[1754258004156,3.36,162.02,162.0,3.22]
[1754258004463,3.36,162.02,162.01,112.06]
[1754258004762,3.36,162.02,162.01,115.28]
[1754258007264,9.531,162.04,162.01,112.06]
[1754258007465,3.36,162.03,162.02,3.22]
[1754258013164,7.91718635,162.03,162.02,3.22]
[1754258013865,3.36,162.03,162.02,3.22]
[1754258015260,7.91992554,162.03,162.02,3.22]
[1754258017666,7.922835,162.03,162.02,3.22]
[1754258026876,7.922835,162.03,162.02,9.3916]
[1754258027877,7.922835,162.03,162.02,9.5816]
[1754258029274,3.36,162.03,162.02,9.5816]
[1754258030977,7.9341662,162.03,162.02,9.5816]
[1754258031277,7.93510582,162.03,162.02,9.5816]
[1754258031473,3.36,162.03,162.02,9.5816]
[1754258033176,7.93610881,162.03,162.02,9.5816]
[1754258034986,7.93610881,162.03,162.02,13.57911531]
[1754258043393,4.57610881,162.03,162.02,13.57911531]
[1754258043593,8.01610881,162.03,162.02,13.57911531]
[1754258044094,8.01610881,162.03,162.02,9.5816]
[1754258044289,8.01610881,162.03,162.02,13.57911531]
[1754258046588,3.44,162.03,162.02,13.57911531]
[1754258046786,8.02739967,162.03,162.02,13.57911531]
[1754258050501,4.58739967,162.03,162.02,13.57911531]
[1754258051295,3.44,162.07,162.06,6.1701]
[1754258051502,3.44,162.07,162.06,125.55761531]
[1754258053702,3.36,162.1,162.07,3.36]
[1754258053896,6.92484139,162.12,162.08,115.97751531]
[1754258054101,6.92484139,162.13,162.08,115.97751531]
[1754258054397,3.36,162.12,162.1,3.36]
[1754258054593,3.36,162.12,162.1,115.34]
[1754258054794,3.36,162.12,162.11,3.36]
[1754258055296,3.36,162.12,162.11,9.5282]
[1754258058302,3.36,162.15,162.11,9.5282]
[1754258058603,3.36,162.15,162.12,115.32]
[1754258059204,3.99751531,162.16,162.12,111.96]
[1754258059404,3.36,162.15,162.12,111.96]
[1754258060405,3.36,162.15,162.12,115.32]
[1754258060808,3.36,162.15,162.12,121.4878]
[1754258062107,3.36,162.15,162.12,118.1278]
[1754258062310,3.36,162.15,162.12,115.32]
[1754258063005,3.36,162.15,162.12,121.4876]
[1754258063311,7.86926407,162.14,162.13,3.36]
[1754258063611,7.86926407,162.14,162.12,118.1276]
[1754258063803,7.86926407,162.13,162.12,121.4876]
[1754258068416,3.36,162.13,162.12,121.4876]
[1754258071907,3.99751531,162.16,162.12,121.4876]
[1754258072113,7.85891483,162.15,162.13,3.36]
[1754258072412,7.85891483,162.14,162.12,118.1276]
[1754258072615,3.36,162.13,162.12,121.4876]
[1754258075709,377.70819563,162.17,162.12,121.4876]
[1754258075916,3.36,162.14,162.13,3.36]
[1754258076116,7.8577441,162.14,162.13,3.36]
[1754258078817,7.8577441,162.14,162.13,9.5274]
[1754258079115,7.8577441,162.14,162.13,3.36]
[1754258080018,3.36,162.14,162.13,3.36]
[1754258081015,375.53961094,162.17,162.14,3.36]
[1754258081217,3.36,162.15,162.14,3.36]
[1754258081611,3.36,162.15,162.14,115.28]
[1754258082116,371.54209563,162.17,162.14,121.4471]
[1754258082416,3.36,162.16,162.15,3.36]
[1754258085419,3.36,162.16,162.15,9.5267]
[1754258089125,3.34,162.16,162.15,9.5267]
[1754258090623,371.54209563,162.17,162.16,3.2]
[1754258090922,376.03579282,162.17,162.16,115.1]
[1754258091323,379.51579282,162.17,162.16,115.1]
[1754258095335,379.51579282,162.17,162.16,111.9]
[1754258095540,375.02209563,162.17,162.16,118.0663]
[1754258095933,3.48,162.17,162.16,121.2663]
[1754258096332,7.98021895,162.17,162.16,121.2663]
[1754258096940,7.98021895,162.17,162.16,115.1]
[1754258099441,7.98021895,162.17,162.16,121.2663]
[1754258100239,7.98021895,162.17,162.16,115.1]
[1754258108340,7.98021895,162.17,162.16,121.2663]
[1754258109843,7.98021895,162.17,162.16,125.26381531]
[1754258113950,7.98021895,162.17,162.16,119.09751531]
[1754258117749,3.3,162.16,162.14,3.2]
[1754258117955,3.99751531,162.2,162.12,3.2]
[1754258117956,3.3,162.14,162.12,3.2]
[1754258118154,3.3,162.14,162.13,111.86]
[1754258118354,7.8147078,162.14,162.13,111.86]
[1754258120857,7.8147078,162.14,162.13,115.06]
[1754258122559,7.8147078,162.14,162.13,111.86]
[1754258122760,7.8147078,162.14,162.13,115.06]
[1754258124758,7.8147078,162.14,162.13,121.2274]
[1754258125158,7.81713857,162.14,162.13,121.2274]
[1754258126160,7.81713857,162.14,162.13,115.06]
[1754258126360,7.81713857,162.14,162.13,111.86]
[1754258126559,7.81713857,162.14,162.13,115.06]
[1754258130966,3.3,162.14,162.13,115.06]
[1754258131168,7.81535985,162.14,162.13,115.06]
[1754258138175,4.51535985,162.14,162.13,115.06]
[1754258138376,7.81535985,162.14,162.13,115.06]
[1754258147783,4.51535985,162.14,162.13,111.86]
[1754258147978,7.75535985,162.14,162.13,115.12]
[1754258148689,7.75469653,162.14,162.13,115.12]
[1754258153496,7.7565013,162.14,162.13,115.12]
[1754258162800,7.76518092,162.14,162.13,115.12]
[1754258164203,4.52518092,162.14,162.13,115.12]
[1754258168302,7.76518092,162.14,162.13,115.12]
[1754258168909,7.76518092,162.14,162.13,121.2875]
[1754258169110,7.76518092,162.14,162.13,115.12]
[1754258171016,4.52518092,162.14,162.13,115.12]
[1754258171216,7.76518092,162.14,162.13,115.12]
[1754258172710,7.76518092,162.14,162.13,119.11751531]
[1754258176718,4.52518092,162.14,162.13,125.28501531]
[1754258177215,3.25,162.15,162.14,3.4]
[1754258177419,7.75926409,162.15,162.14,3.4]
[1754258178415,7.75926409,162.15,162.14,6.1671]
[1754258178615,4.50926409,162.15,162.14,9.5671]
[1754258180218,6.1656,162.18,162.14,9.5671]
[1754258180219,3.25,162.17,162.14,9.5671]
[1754258180421,4.50812471,162.16,162.15,119.21751531]
[1754258180613,7.75812471,162.16,162.15,119.21751531]
[1754258180919,7.75812471,162.16,162.15,125.38421531]
[1754258181113,7.75812471,162.16,162.15,119.21751531]
[1754258185125,4.50812471,162.16,162.15,125.38421531]
[1754258185523,7.75812471,162.16,162.15,125.38421531]
[1754258186220,4.50812471,162.16,162.15,125.38421531]
[1754258187426,3.25,162.17,162.16,3.4]
[1754258196737,3.25,162.17,162.16,9.5663]
[1754258199137,3.25,162.17,162.16,121.3663]
[1754258200839,3.25,162.17,162.16,119.19751531]
[1754258201341,3.25,162.17,162.16,115.2]
[1754258201540,3.25,162.17,162.16,119.19751531]
[1754258203641,3.25,162.17,162.16,115.79751531]
[1754258204538,3.25,162.17,162.16,119.07751531]
[1754258207042,3.25,162.17,162.16,115.79751531]
[1754258207242,3.25,162.17,162.16,111.78]
[1754258207443,3.25,162.17,162.15,111.78]
[1754258207843,3.25,162.16,162.15,111.78]
[1754258208242,7.95977132,162.16,162.15,111.78]
[1754258212546,3.25,162.16,162.15,111.78]
[1754258212745,7.96078049,162.16,162.15,111.78]
[1754258214148,7.96078049,162.16,162.14,111.78]
[1754258214335,7.96078049,162.15,162.14,111.78]
[1754258215845,7.96045645,162.15,162.14,111.78]
[1754258219248,7.96045645,162.15,162.14,115.06]
[1754258223543,7.95940569,162.15,162.14,115.06]
[1754258226759,4.70940569,162.15,162.14,115.06]
[1754258233765,4.72490964,162.15,162.14,111.78]
[1754258234467,4.72490964,162.15,162.14,115.13]
[1754258236068,4.72490964,162.15,162.14,121.2971]
[1754258237157,4.72490964,162.15,162.14,9.5171]
[1754258237357,4.72490964,162.15,162.14,121.2771]
[1754258241472,4.72490964,162.15,162.14,115.11]
[1754258243070,4.72490964,162.15,162.14,121.2771]
[1754258243466,4.72490964,162.15,162.14,115.11]
[1754258243977,8.16490964,162.15,162.14,115.11]
[1754258255787,4.72490964,162.15,162.14,121.2771]
[1754258255988,8.16490964,162.15,162.14,121.2771]
[1754258256888,4.72490964,162.15,162.14,121.2771]
[1754258257978,3.44,162.18,162.16,6.1659]
[1754258258178,8.1643371,162.17,162.16,10.16341531]
[1754258258385,8.1643371,162.17,162.16,121.90341531]
[1754258258778,141.53208744,162.2,162.16,115.73751531]
[1754258258983,3.44,162.19,162.18,3.99751531]
[1754258259184,3.44,162.19,162.18,115.73751531]
[1754258260288,3.44,162.19,162.18,119.08751531]
[1754258264794,3.44,162.19,162.18,7.34751531]